bitfinex/quotes_BTCUSD_20250129
["timestamp","ask_amount","ask_price","bid_price","bid_amount"]
[1738180459677,0.30102316,103650.0,103640.0,1e-08]
[1738180459925,0.44574016,103650.0,103640.0,1e-08]
[1738180460129,0.29602316,103650.0,103640.0,1e-08]
[1738180460333,0.39196016,103650.0,103640.0,1e-08]
[1738180461336,0.39696016,103650.0,103640.0,1e-08]
[1738180461752,0.10224316,103650.0,103640.0,1e-08]
[1738180462169,0.10224316,103650.0,103640.0,0.14473101]
[1738180462387,0.15047752,103670.0,103640.0,0.14473101]
[1738180462599,0.09772068,103670.0,103660.0,0.144703]
[1738180462803,0.00047752,103670.0,103660.0,0.00052027]
[1738180463010,0.29064168,103670.0,103640.0,0.33768701]
[1738180463216,0.29064168,103670.0,103640.0,1e-08]
[1738180463217,0.24844915,103660.0,103640.0,1e-08]
[1738180463421,0.43611015,103660.0,103640.0,1e-08]
[1738180463626,0.09844915,103660.0,103640.0,0.14472101]
[1738180463843,0.24316115,103660.0,103640.0,0.14472901]
[1738180464058,0.43610915,103660.0,103640.0,0.14472901]
[1738180464262,0.09724316,103660.0,103650.0,0.144717]
[1738180464470,0.15047752,103670.0,103660.0,0.144703]
[1738180464689,0.09772068,103670.0,103660.0,0.144703]
[1738180464903,0.10072068,103670.0,103660.0,0.144703]
[1738180465111,0.25072068,103670.0,103660.0,0.144703]
[1738180465318,0.39241168,103670.0,103650.0,0.530601]
[1738180465526,0.00120595,103660.0,103650.0,0.144709]
[1738180465732,0.09724316,103660.0,103650.0,0.144709]
[1738180465937,0.00447752,103670.0,103660.0,0.144703]
[1738180466148,0.09892649,103670.0,103660.0,0.144703]
[1738180466345,0.09892649,103670.0,103650.0,0.144709]
[1738180466548,0.09772068,103670.0,103660.0,0.144703]
[1738180466844,0.09772068,103670.0,103640.0,0.19296201]
[1738180466845,0.48765,103660.0,103640.0,1e-08]
[1738180467103,0.48765,103660.0,103640.0,0.14472701]
[1738180467104,0.09724316,103650.0,103640.0,0.14472701]
[1738180467508,0.15,103660.0,103650.0,0.144717]
[1738180467709,0.24724316,103660.0,103640.0,0.53065101]
[1738180467933,0.00047752,103670.0,103660.0,0.144703]
[1738180469187,0.00047752,103670.0,103660.0,0.14522346]
[1738180469383,0.00047752,103670.0,103660.0,0.22352346]
[1738180469588,0.00047752,103670.0,103660.0,0.32124616]
[1738180469788,0.00077656,103670.0,103660.0,0.32124616]
[1738180469997,0.00077656,103670.0,103660.0,0.5683178]
[1738180470422,0.00077656,103670.0,103660.0,0.5783178]
[1738180470633,0.04479454,103720.0,103710.0,0.144634]
[1738180470884,0.00029883,103730.0,103720.0,0.14462]
[1738180471068,0.09754199,103730.0,103720.0,0.14462]
[1738180471278,0.00029883,103730.0,103720.0,0.14462]
[1738180471719,0.09754199,103730.0,103720.0,0.14462]
[1738180471923,0.09889041,103730.0,103720.0,0.14462]
[1738180472155,0.09768527,103730.0,103720.0,0.14462]
[1738180472577,0.09889043,103730.0,103720.0,0.001]
[1738180472784,0.0268579,103760.0,103750.0,0.144578]
[1738180472993,0.00029946,103780.0,103760.0,0.337315]
[1738180472994,0.33824342,103780.0,103760.0,0.337315]
[1738180473200,0.09724316,103770.0,103760.0,0.144564]
[1738180473827,0.00077867,103780.0,103770.0,0.14455]
[1738180474033,0.09802183,103780.0,103770.0,0.14455]
[1738180474680,0.00077867,103780.0,103770.0,0.14455]
[1738180475363,0.09802183,103780.0,103770.0,0.14455]
[1738180475786,0.00077867,103780.0,103770.0,0.14455]
[1738180475993,0.09870779,103780.0,103760.0,0.3373]
[1738180476211,0.09870779,103780.0,103750.0,0.192764]
[1738180476212,0.24179916,103770.0,103750.0,0.337332]
[1738180476427,0.00068596,103760.0,103750.0,0.192759]
[1738180476647,0.00077867,103780.0,103770.0,0.14455]
[1738180476865,0.00077867,103780.0,103770.0,0.14551352]
[1738180477068,0.00077867,103780.0,103770.0,0.36635668]
[1738180477318,0.00477867,103780.0,103770.0,0.36539316]
[1738180477725,0.00077867,103780.0,103770.0,0.36539316]
[1738180477935,0.00077867,103780.0,103770.0,0.26815]
[1738180478156,0.00077867,103780.0,103730.0,0.535596]
[1738180478157,0.01,103730.0,103720.0,0.39169164]
[1738180478373,0.09724316,103730.0,103710.0,0.385666]
[1738180478597,0.337337,103760.0,103730.0,0.192804]
[1738180478812,0.337335,103760.0,103730.0,0.144604]
[1738180479023,0.47715113,103780.0,103720.0,0.01]
[1738180479024,0.09724316,103750.0,103720.0,0.01]
[1738180479229,0.62739716,103750.0,103720.0,0.174613]
[1738180479659,0.09724316,103750.0,103730.0,0.144602]
[1738180480065,0.09724316,103750.0,103730.0,0.154602]
[1738180480497,0.09724316,103750.0,103730.0,0.347409]
[1738180480698,0.09792912,103750.0,103730.0,0.347409]
[1738180480905,0.09792912,103750.0,103740.0,0.174592]
[1738180480906,0.09724316,103750.0,103740.0,0.174592]
[1738180481119,0.14483646,103780.0,103750.0,0.20277]
[1738180481344,0.0980728,103770.0,103750.0,0.347335]
[1738180481564,0.144578,103750.0,103740.0,0.01]
[1738180481776,0.144609,103730.0,103710.0,0.02]
[1738180482005,0.144606,103730.0,103720.0,0.0001422]
[1738180482210,0.1783465,103730.0,103720.0,0.0001422]
[1738180482489,0.24184916,103730.0,103720.0,0.0001422]
[1738180482905,0.29062916,103730.0,103720.0,0.0001422]
[1738180483344,0.44062916,103730.0,103720.0,0.0001422]
[1738180483557,0.46362916,103730.0,103720.0,0.0001422]
[1738180483781,0.44062916,103730.0,103720.0,0.0001422]
[1738180484403,0.44962916,103730.0,103720.0,0.0011422]
[1738180484613,0.29962916,103730.0,103720.0,0.0011422]
[1738180484820,0.29062916,103730.0,103720.0,0.0001422]
[1738180485238,0.29962916,103730.0,103720.0,0.0011422]
[1738180485647,0.47262916,103730.0,103720.0,0.0011422]
[1738180485826,0.52142916,103730.0,103720.0,1e-08]
[1738180486060,0.337524,103700.0,103680.0,0.02]
[1738180486264,0.09792912,103690.0,103680.0,0.02]
[1738180486470,0.09724316,103690.0,103680.0,0.02]
[1738180486675,0.09724316,103690.0,103670.0,0.36773328]
[1738180486881,0.43548312,103690.0,103670.0,0.02014328]
[1738180487095,0.144675,103680.0,103670.0,0.00014328]
[1738180487311,0.09792912,103680.0,103670.0,0.00014328]
[1738180487523,0.09792912,103680.0,103670.0,0.02014328]
[1738180487729,0.09792912,103680.0,103670.0,0.00014328]
[1738180487962,0.09792912,103680.0,103670.0,0.02014328]
[1738180488200,0.09792912,103680.0,103670.0,0.17483228]
[1738180488201,0.09724316,103680.0,103670.0,0.17483228]
[1738180488448,0.09724316,103680.0,103670.0,0.17583228]
[1738180488708,0.77743364,103710.0,103680.0,0.357572]
[1738180488906,4e-05,103690.0,103670.0,0.36874228]
[1738180489115,0.09796912,103690.0,103670.0,0.36874328]
[1738180489325,0.09796912,103690.0,103670.0,0.17582528]
[1738180489549,0.24263112,103690.0,103670.0,0.03014328]
[1738180489769,0.24263112,103690.0,103670.0,0.00014328]
[1738180489770,0.24291816,103680.0,103670.0,0.00014328]
[1738180490232,0.24191816,103680.0,103670.0,0.00014328]
[1738180491073,0.09724316,103680.0,103670.0,0.01014328]
[1738180491283,4e-05,103690.0,103680.0,0.154675]
[1738180491492,0.09728316,103690.0,103680.0,0.01]
[1738180491695,0.09728316,103690.0,103670.0,0.56064328]
[1738180491901,0.09728316,103690.0,103680.0,0.01]
[1738180492105,0.48307416,103690.0,103670.0,0.00014328]
[1738180492331,0.48307416,103690.0,103680.0,0.01]
[1738180492332,0.09728316,103690.0,103680.0,0.01]
[1738180492537,0.09728316,103690.0,103680.0,0.154675]
[1738180492973,0.144675,103680.0,103670.0,0.00014328]
[1738180493180,0.24191816,103680.0,103670.0,0.00014328]
[1738180493619,0.24191816,103680.0,103670.0,0.00028548]
[1738180494054,0.39191816,103680.0,103670.0,0.00028548]
[1738180494263,0.41491816,103680.0,103670.0,0.00028548]
[1738180494466,0.51227492,103680.0,103670.0,0.00028548]
[1738180494898,0.51327492,103680.0,103670.0,0.00028548]
[1738180495112,0.39291816,103680.0,103670.0,0.00028548]
[1738180495323,0.09824316,103680.0,103670.0,0.14497448]
[1738180495529,0.09824316,103680.0,103670.0,0.17497448]
[1738180495530,0.09724316,103680.0,103670.0,0.17497448]
[1738180495963,0.10392912,103680.0,103670.0,0.00028548]
[1738180496403,0.24860412,103680.0,103670.0,0.00028548]
[1738180496606,0.10324316,103680.0,103670.0,0.15497448]
[1738180497228,0.25300103,103680.0,103670.0,0.00028548]
[1738180497436,0.24191816,103680.0,103670.0,0.00028548]
[1738180497694,0.24491816,103680.0,103670.0,0.00028548]
[1738180498324,0.24191816,103680.0,103670.0,0.00028548]
[1738180498531,0.24791816,103680.0,103670.0,0.00028548]
[1738180498733,0.10324316,103680.0,103670.0,0.14497448]
[1738180499146,0.24860412,103680.0,103670.0,0.00028548]
[1738180499353,0.31129078,103680.0,103670.0,0.00028548]
[1738180499965,0.26752552,103680.0,103670.0,0.00028548]
[1738180500390,0.26152552,103680.0,103670.0,0.00028548]
[1738180500804,0.26252552,103680.0,103670.0,0.00028548]
[1738180501220,0.144717,103650.0,103640.0,0.01000001]
[1738180501427,0.09724316,103650.0,103640.0,0.17520853]
[1738180501657,0.21907436,103680.0,103660.0,0.347639]
[1738180501931,0.00824791,103700.0,103690.0,0.03]
[1738180502162,0.00029862,103750.0,103740.0,0.164592]
[1738180502377,6.2e-07,103750.0,103740.0,0.57262748]
[1738180502584,6.2e-07,103750.0,103740.0,0.6689068]
[1738180503266,0.1447223,103750.0,103740.0,0.10724316]
[1738180503469,0.09738746,103750.0,103740.0,0.16555575]
[1738180503677,0.09738746,103750.0,103740.0,0.144592]
[1738180503916,0.09807342,103750.0,103740.0,0.144592]
[1738180504137,0.0001443,103750.0,103740.0,0.174592]
[1738180504343,0.0001443,103750.0,103740.0,0.42662759]
[1738180504551,0.0001443,103750.0,103740.0,0.178592]
[1738180504773,0.09738746,103750.0,103740.0,0.148592]
[1738180504980,0.43542242,103750.0,103730.0,0.376139]
[1738180505185,0.24252112,103740.0,103730.0,5e-05]
[1738180505430,0.24183516,103740.0,103730.0,5e-05]
[1738180507486,0.24683516,103740.0,103730.0,5e-05]
[1738180508091,0.24183516,103740.0,103730.0,5e-05]
[1738180508494,0.39183516,103740.0,103730.0,5e-05]
[1738180508811,0.75926356,103740.0,103730.0,5e-05]
[1738180509063,0.337552,103690.0,103670.0,0.442882]
[1738180509273,0.09792912,103680.0,103670.0,0.02]
[1738180509489,0.29084312,103680.0,103660.0,0.0001422]
[1738180509692,0.09724316,103680.0,103670.0,0.164689]
[1738180509900,0.09724316,103680.0,103670.0,0.174689]
[1738180510111,0.12587228,103680.0,103670.0,0.174689]
[1738180510324,0.02862912,103680.0,103670.0,0.174689]
[1738180510535,0.02862912,103680.0,103670.0,0.32483276]
[1738180511164,0.02931508,103700.0,103690.0,0.174661]
[1738180511376,0.02862912,103700.0,103690.0,0.17562526]
[1738180511797,0.02500636,103700.0,103690.0,0.174661]
[1738180512007,0.02500636,103700.0,103690.0,0.32562522]
[1738180512246,0.02500636,103700.0,103690.0,0.54580416]
[1738180512457,0.144606,103730.0,103720.0,0.01]
[1738180512662,0.09792912,103730.0,103720.0,0.03]
[1738180512924,0.09724316,103730.0,103720.0,0.222825]
[1738180513136,0.38556562,103750.0,103720.0,0.222825]
[1738180513355,0.14457862,103750.0,103740.0,0.144592]
[1738180513583,0.09724378,103750.0,103740.0,0.174592]
[1738180513791,0.09738746,103750.0,103740.0,0.174592]
[1738180514660,0.09738746,103750.0,103740.0,0.154592]
[1738180515065,0.0001443,103750.0,103740.0,0.174592]
[1738180515280,0.0001443,103750.0,103740.0,0.17555585]
[1738180515486,0.0001443,103750.0,103740.0,0.324592]
[1738180515708,0.0001443,103750.0,103740.0,0.42183516]
[1738180516544,0.0001443,103750.0,103740.0,0.43183516]
[1738180516761,0.0001443,103750.0,103740.0,0.42183516]
[1738180517160,3e-07,103750.0,103740.0,0.43183516]
[1738180517362,0.00029946,103780.0,103770.0,0.17455]
[1738180517567,0.00077837,103780.0,103770.0,0.17551346]
[1738180518587,0.00077837,103780.0,103770.0,0.17551345]
[1738180518791,0.00077837,103780.0,103770.0,0.25361345]
[1738180521376,0.09724316,103720.0,103710.0,0.174634]
[1738180521578,0.09724316,103720.0,103710.0,0.154634]
[1738180521800,0.29008116,103720.0,103690.0,0.164659]
[1738180522012,0.337524,103700.0,103690.0,0.00014368]
[1738180522218,0.43476716,103700.0,103690.0,0.00014368]
[1738180522634,0.48355479,103700.0,103690.0,0.00014368]
[1738180522846,0.63355479,103700.0,103690.0,0.00014368]
[1738180523275,0.144689,103670.0,103660.0,0.0001422]
[1738180523485,0.48968976,103670.0,103660.0,0.00028596]
[1738180523690,0.4890038,103670.0,103660.0,0.00028596]
[1738180525584,0.75936056,103670.0,103660.0,1e-08]
[1738180525995,0.75940056,103670.0,103660.0,1e-08]
[1738180526427,0.317717,103650.0,103640.0,1e-08]
[1738180526626,0.6620318,103650.0,103640.0,0.00047753]
[1738180526844,0.6390318,103650.0,103640.0,0.00047753]
[1738180527058,0.6620318,103650.0,103640.0,0.00047753]
[1738180527265,0.6390318,103650.0,103640.0,0.00047753]
[1738180527463,0.6440318,103650.0,103640.0,0.00047753]
[1738180527673,0.3493148,103650.0,103640.0,0.00047753]
[1738180527873,0.3493148,103650.0,103640.0,0.14520853]
[1738180528155,0.09724316,103650.0,103640.0,0.17520853]
[1738180528492,0.10624316,103650.0,103640.0,0.14620853]
[1738180528696,0.11830828,103650.0,103640.0,0.17620853]
[1738180528902,0.10930828,103650.0,103640.0,0.17520853]
[1738180529116,0.10930828,103650.0,103640.0,0.16820853]
[1738180529311,0.35637992,103650.0,103640.0,0.14820853]
[1738180529728,0.50109692,103650.0,103640.0,0.00347753]
[1738180529939,0.35637992,103650.0,103640.0,0.14820853]
[1738180530135,0.50109692,103650.0,103640.0,0.00347753]
[1738180530352,0.67413692,103650.0,103640.0,0.00047753]
[1738180530771,0.6621118,103650.0,103640.0,0.00147753]
[1738180530974,0.173,103640.0,103600.0,0.0001418]
[1738180531184,0.144815,103580.0,103570.0,0.0001424]
[1738180531391,0.09792912,103580.0,103570.0,0.0001424]
[1738180531808,0.09724316,103580.0,103570.0,0.1549714]
[1738180532006,0.09724316,103580.0,103570.0,0.1449714]
[1738180532209,0.09724316,103580.0,103570.0,0.0001424]
[1738180532210,0.25213731,103580.0,103570.0,0.0001424]
[1738180532430,0.27773872,103580.0,103570.0,0.1449714]
[1738180532635,0.09724316,103580.0,103570.0,0.14511527]
[1738180532842,0.09724316,103580.0,103570.0,0.15511527]
[1738180533044,0.09724316,103580.0,103570.0,0.17511527]
[1738180533462,0.09724316,103580.0,103570.0,0.17711527]
[1738180533673,0.01207311,103590.0,103580.0,0.174815]
[1738180534096,0.01207311,103590.0,103580.0,0.174775]
[1738180534518,0.58482464,103630.0,103590.0,0.174721]
[1738180534519,0.04049922,103600.0,103590.0,0.174721]
[1738180534741,0.13774238,103600.0,103590.0,0.164721]
[1738180534968,0.13774238,103600.0,103590.0,0.17564622]
[1738180534969,0.04049922,103600.0,103590.0,0.17564622]
[1738180535167,0.47558438,103600.0,103580.0,0.531967]
[1738180535374,0.09792912,103590.0,103580.0,0.155775]
[1738180535576,0.11276482,103600.0,103590.0,0.174681]
[1738180535577,0.04049922,103600.0,103590.0,0.174681]
[1738180535789,0.13774238,103600.0,103590.0,0.174681]
[1738180535986,0.12024316,103600.0,103580.0,0.001]
[1738180536192,0.24273012,103590.0,103580.0,0.001]
[1738180536399,0.48193694,103590.0,103570.0,0.00028627]
[1738180536603,0.144829,103570.0,103560.0,0.0001421]
[1738180536802,0.41575812,103570.0,103560.0,0.0001421]
[1738180537011,0.41507216,103570.0,103560.0,0.0001421]
[1738180538287,0.42007216,103570.0,103560.0,0.0001421]
[1738180538493,0.51742892,103570.0,103560.0,0.0001421]
[1738180538894,0.39707216,103570.0,103560.0,0.0001421]
[1738180539532,0.41507216,103570.0,103560.0,0.0001421]
[1738180539966,0.42107216,103570.0,103560.0,0.0011421]
[1738180540386,0.27107216,103570.0,103560.0,0.0011421]
[1738180540797,0.42107216,103570.0,103560.0,0.0011421]
[1738180541000,0.51842892,103570.0,103560.0,0.0011421]
[1738180541207,0.48942892,103570.0,103560.0,0.0001421]
[1738180541718,0.51642892,103570.0,103560.0,0.0001421]
[1738180541968,0.10124316,103570.0,103560.0,0.1449851]
[1738180542234,0.10124316,103570.0,103560.0,0.1748651]
[1738180542475,0.10124316,103570.0,103560.0,0.1649051]
[1738180542761,0.09724316,103570.0,103560.0,0.0200621]
[1738180543037,0.30858888,103570.0,103560.0,0.0011421]
[1738180543517,0.46458888,103570.0,103560.0,0.0011421]
[1738180543800,0.46458888,103570.0,103560.0,0.0001421]
[1738180543801,0.50737651,103570.0,103560.0,0.0001421]
[1738180544049,0.51037651,103570.0,103560.0,0.0001421]
[1738180544597,0.50737651,103570.0,103560.0,0.0001421]
[1738180544869,0.86067651,103570.0,103560.0,0.0011421]
[1738180545167,0.173,103540.0,103530.0,0.0001425]
[1738180545432,0.69948646,103540.0,103530.0,0.0001425]
[1738180545704,0.6988005,103540.0,103530.0,0.0001425]
[1738180546545,0.72216724,103540.0,103530.0,0.00062245]
[1738180546815,0.72216724,103540.0,103520.0,6e-05]
[1738180546816,0.317885,103530.0,103520.0,6e-05]
[1738180547076,0.294941,103490.0,103480.0,0.0001421]
[1738180547357,0.48503542,103490.0,103480.0,0.0001421]
[1738180547613,0.39204064,103470.0,103460.0,0.0001421]
[1738180547899,0.4892838,103470.0,103460.0,0.0001421]
[1738180548169,0.6392838,103470.0,103460.0,0.0001421]
[1738180548375,0.317983,103460.0,103450.0,0.0156638]
[1738180548614,0.51258292,103460.0,103450.0,0.0158077]
[1738180548851,0.48958292,103460.0,103450.0,0.0158077]
[1738180550200,0.19459992,103460.0,103450.0,0.1608047]
[1738180550203,0.10124316,103460.0,103450.0,0.1608047]
[1738180550484,0.10124316,103460.0,103450.0,0.1906847]
[1738180550725,0.144941,103500.0,103480.0,0.193274]
[1738180550993,0.09724316,103490.0,103480.0,0.338216]
[1738180551262,0.1602403,103490.0,103480.0,0.358136]
[1738180551516,0.1602403,103490.0,103480.0,0.338216]
[1738180551793,0.1602403,103490.0,103480.0,0.358136]
[1738180552058,0.1602403,103490.0,103480.0,0.338216]
[1738180552325,0.11669818,103490.0,103480.0,0.338216]
[1738180552602,0.11669818,103490.0,103480.0,0.328216]
[1738180552862,0.51445578,103490.0,103480.0,0.144955]
[1738180553131,0.26463918,103490.0,103480.0,0.144955]
[1738180553381,0.11969818,103490.0,103480.0,0.144955]
[1738180553636,0.16855772,103490.0,103480.0,0.144955]
[1738180553964,0.144969,103470.0,103450.0,0.5417215]
[1738180554125,0.09792912,103460.0,103450.0,0.3384575]
[1738180554368,0.09792912,103460.0,103450.0,0.2133905]
[1738180554603,0.09792912,103460.0,103450.0,0.1934705]
[1738180554837,0.17775367,103460.0,103450.0,0.2233505]
[1738180555328,0.32205071,103460.0,103450.0,0.0001425]
[1738180555575,0.17706771,103460.0,103450.0,0.0200625]
[1738180555821,0.17706771,103460.0,103450.0,0.1750195]
[1738180556075,0.09792912,103460.0,103450.0,0.1750195]
[1738180556311,0.09724316,103460.0,103450.0,0.1750195]
[1738180556578,0.09824316,103460.0,103450.0,0.1750195]
[1738180557103,0.09824316,103460.0,103450.0,0.32598605]
[1738180557104,0.001,103460.0,103450.0,0.32598605]
[1738180557341,0.001,103460.0,103450.0,0.3250195]
[1738180557557,0.00068596,103490.0,103480.0,0.154915]
[1738180557805,0.09792912,103490.0,103480.0,0.154915]
[1738180558017,0.10772203,103490.0,103480.0,0.154915]
[1738180558248,0.54804867,103490.0,103470.0,0.144968]
[1738180558456,0.09792912,103480.0,103470.0,0.193292]
[1738180558672,0.144983,103460.0,103450.0,0.0001425]
[1738180558893,0.41522616,103460.0,103450.0,0.0001425]
[1738180559743,0.24222616,103460.0,103450.0,0.0001425]
[1738180559949,0.24724316,103460.0,103450.0,0.0001425]
[1738180560182,0.24222616,103460.0,103450.0,0.0001425]
[1738180560394,0.13596358,103460.0,103450.0,0.1451395]
[1738180560856,0.28163254,103460.0,103450.0,0.0001425]
[1738180561073,0.28094658,103460.0,103450.0,0.0001425]
[1738180561296,0.09724316,103460.0,103450.0,0.1550995]
[1738180561528,0.09724316,103460.0,103450.0,0.1750195]
[1738180561733,0.09724316,103460.0,103450.0,0.1650595]
[1738180562159,0.09724316,103460.0,103450.0,0.1750195]
[1738180562775,0.15473891,103490.0,103470.0,0.348203]
[1738180563027,0.24219816,103480.0,103470.0,0.154919]
[1738180563295,0.14176887,103480.0,103470.0,0.154919]
[1738180563509,0.48069783,103480.0,103460.0,0.368153]
[1738180563712,0.00068596,103470.0,103460.0,0.174856]
[1738180563917,0.09792912,103470.0,103460.0,0.174856]
[1738180564139,0.09792912,103470.0,103450.0,0.0200625]
[1738180564351,0.24222616,103460.0,103450.0,0.0001425]
[1738180564570,0.41522616,103460.0,103450.0,0.0001425]
[1738180564986,0.41506864,103450.0,103440.0,1e-08]
[1738180565200,0.5123118,103450.0,103440.0,0.00014416]
[1738180565448,0.24224016,103450.0,103440.0,0.00014416]
[1738180565661,0.24224016,103450.0,103440.0,0.14515516]
[1738180565662,0.09724316,103450.0,103440.0,0.14515516]
[1738180566109,0.09724316,103450.0,103440.0,0.16488948]
[1738180566309,0.09792912,103450.0,103440.0,0.16488948]
[1738180566511,0.09724316,103450.0,103440.0,0.174891]
[1738180566741,0.18979096,103480.0,103460.0,0.01992]
[1738180566943,0.24221216,103470.0,103450.0,0.531625]
[1738180567166,0.09724316,103470.0,103460.0,0.174863]
[1738180567370,0.00029925,103480.0,103470.0,0.324849]
[1738180567782,0.144899,103520.0,103510.0,0.154865]
[1738180567987,0.09724316,103520.0,103500.0,0.164847]
[1738180568191,0.24215616,103510.0,103500.0,0.01992]
[1738180568396,0.28569258,103510.0,103500.0,0.01992]
[1738180568598,0.28569258,103510.0,103490.0,0.164854]
[1738180568599,0.47891858,103510.0,103490.0,0.164854]
[1738180568803,0.09724316,103510.0,103500.0,0.164847]
[1738180569011,0.09738656,103510.0,103500.0,0.174807]
[1738180569218,0.0001434,103510.0,103500.0,0.324807]
[1738180569429,0.0001434,103510.0,103500.0,0.64967864]
[1738180569633,0.0001434,103510.0,103500.0,0.392647]
[1738180569845,0.0001434,103510.0,103500.0,0.402607]
[1738180570055,4e-07,103510.0,103500.0,0.66634195]
[1738180570273,4e-07,103510.0,103500.0,0.7469218]
[1738180570492,0.00029925,103540.0,103530.0,0.174765]
[1738180570702,0.09802236,103540.0,103530.0,0.174765]
[1738180571119,0.09870832,103540.0,103530.0,0.174765]
[1738180571349,0.09870832,103540.0,103530.0,0.164805]
[1738180571568,0.144885,103530.0,103520.0,0.01992]
[1738180571785,0.144905,103520.0,103500.0,0.425907]
[1738180571993,0.09792912,103510.0,103500.0,0.164847]
[1738180572204,0.00068596,103510.0,103500.0,0.174807]
[1738180572416,0.0007792,103540.0,103530.0,0.164805]
[1738180572624,0.09802236,103540.0,103530.0,0.174765]
[1738180572892,0.0007792,103540.0,103530.0,0.17573088]
[1738180573102,0.09802236,103540.0,103530.0,0.17573088]
[1738180573311,0.09802236,103540.0,103530.0,0.02292]
[1738180573546,0.09802236,103540.0,103530.0,0.167805]
[1738180573750,0.09870832,103540.0,103530.0,0.174765]
[1738180573956,0.09802236,103540.0,103530.0,0.174765]
[1738180574184,0.0007792,103540.0,103530.0,0.32973084]
[1738180574387,0.0007792,103540.0,103530.0,0.348765]
[1738180574595,0.0007792,103540.0,103530.0,0.44200816]
[1738180574808,0.0007792,103540.0,103530.0,0.42200816]
[1738180575014,0.0007792,103540.0,103530.0,0.42500816]
[1738180575219,0.0007792,103540.0,103530.0,0.327765]
[1738180575432,0.0007792,103540.0,103530.0,0.317805]
[1738180575637,0.0007792,103540.0,103530.0,0.42500816]
[1738180575847,0.00049925,103590.0,103580.0,0.02988]
[1738180576060,0.00049925,103590.0,103580.0,0.174695]
[1738180576061,0.09788642,103590.0,103580.0,0.174695]
[1738180576897,0.09788642,103590.0,103580.0,0.164735]
[1738180577097,0.09788642,103590.0,103580.0,0.174695]
[1738180577336,0.24269842,103590.0,103560.0,0.244555]
[1738180577521,0.29034916,103570.0,103540.0,0.0792]
[1738180577728,0.29034916,103570.0,103550.0,0.02988]
[1738180577729,0.24208216,103570.0,103550.0,0.02988]
[1738180577939,0.193125,103560.0,103530.0,0.367926]
[1738180578141,0.00029925,103540.0,103530.0,0.174765]
[1738180578343,0.09754241,103540.0,103530.0,0.174765]
[1738180578753,0.12253711,103540.0,103530.0,0.00996]
[1738180578964,0.26672215,103540.0,103530.0,0.02988]
[1738180579606,0.12185115,103540.0,103530.0,0.02988]
[1738180579819,0.09822837,103540.0,103530.0,0.02988]
[1738180580021,0.09754241,103540.0,103530.0,0.174765]
[1738180580664,0.09754241,103540.0,103530.0,0.176765]
[1738180581117,0.09754241,103540.0,103530.0,0.57280244]
[1738180581118,0.00029925,103540.0,103530.0,0.57280244]
[1738180581328,0.00029925,103540.0,103530.0,0.57183664]
[1738180581963,0.00029925,103540.0,103530.0,0.6690798]
[1738180582168,0.00029925,103540.0,103530.0,0.7388198]
[1738180582391,0.00029925,103540.0,103530.0,0.65153664]
[1738180582599,0.00029925,103540.0,103530.0,0.7517798]
[1738180583017,0.00029925,103540.0,103530.0,0.384545]
[1738180583238,0.00049925,103590.0,103580.0,0.174695]
[1738180583451,0.19324098,103580.0,103560.0,0.00996]
[1738180583662,0.09792912,103570.0,103550.0,0.367874]
[1738180583865,0.09792912,103570.0,103550.0,0.561006]
[1738180584074,0.09724316,103570.0,103560.0,0.174723]
[1738180584526,0.00014398,103580.0,103570.0,0.174709]
[1738180584726,0.09738714,103580.0,103570.0,0.174709]
[1738180585160,0.09738714,103580.0,103570.0,0.17461078]
[1738180586144,0.00014398,103580.0,103570.0,0.32557623]
[1738180586352,0.00014398,103580.0,103570.0,0.57168242]
[1738180586551,0.00014398,103580.0,103570.0,0.65298242]
[1738180586967,0.00049925,103590.0,103570.0,0.65298242]
[1738180587189,2.5e-07,103590.0,103580.0,0.44280523]
[1738180587402,2.5e-07,103590.0,103580.0,0.42183994]
[1738180587641,2.5e-07,103590.0,103580.0,1.92183994]
[1738180588087,2.5e-07,103590.0,103580.0,1.91197816]
[1738180588315,2.5e-07,103590.0,103580.0,1.89205816]
[1738180588525,2.5e-07,103590.0,103580.0,0.164735]
[1738180588745,2.5e-07,103590.0,103580.0,0.17556211]
[1738180589649,0.00100025,103590.0,103580.0,0.17459678]
[1738180589879,0.00100025,103590.0,103580.0,0.17556211]
[1738180590097,0.09724341,103590.0,103580.0,0.144815]
[1738180590304,0.09892937,103590.0,103580.0,0.18059678]
[1738180590509,0.09824341,103590.0,103580.0,0.16067678]
[1738180590715,0.09824341,103590.0,103580.0,0.18059678]
[1738180591340,0.09824341,103590.0,103580.0,0.006]
[1738180591341,0.26647227,103590.0,103580.0,0.006]
[1738180591550,0.24304441,103590.0,103580.0,0.006]
[1738180591760,0.41604441,103590.0,103580.0,0.006]
[1738180592197,0.15,103580.0,103550.0,0.36777778]
[1738180592408,0.09792912,103570.0,103560.0,0.01992]
[1738180592635,0.144843,103560.0,103550.0,0.01000576]
[1738180592839,0.24277212,103560.0,103550.0,0.00014398]
[1738180593050,0.24208616,103560.0,103550.0,0.00014398]
[1738180593267,0.5121578,103560.0,103550.0,0.00014398]
[1738180593473,0.6621578,103560.0,103550.0,0.00014398]
[1738180593684,0.75951456,103560.0,103550.0,0.00014398]
[1738180593894,0.75951456,103560.0,103550.0,0.00514398]
[1738180594516,0.75965278,103560.0,103550.0,0.00514398]
[1738180594728,0.173,103550.0,103540.0,0.0001424]
[1738180594945,0.144941,103490.0,103480.0,0.00986178]
[1738180595153,0.144955,103480.0,103460.0,0.36805378]
[1738180595354,0.00068596,103480.0,103470.0,0.01992]
[1738180595561,0.09724316,103480.0,103470.0,0.164887]
[1738180595764,0.09724316,103480.0,103470.0,0.17460252]
[1738180596004,0.338109,103520.0,103490.0,0.22302178]
[1738180596214,0.24215716,103510.0,103490.0,0.34803178]
[1738180596465,0.15,103530.0,103500.0,0.17470878]
[1738180596676,0.09724316,103520.0,103510.0,0.22299878]
[1738180596887,0.10696748,103520.0,103510.0,0.22299878]
[1738180597103,0.24214216,103520.0,103500.0,0.54123878]
[1738180597336,0.24214216,103520.0,103500.0,0.34801378]
[1738180597777,0.09724316,103520.0,103500.0,0.34801378]
[1738180597988,0.24285012,103510.0,103490.0,0.36844073]
[1738180598214,0.144927,103500.0,103490.0,0.00047995]
[1738180598446,0.70585071,103500.0,103490.0,0.00047995]
[1738180598651,0.70598893,103500.0,103490.0,0.00047995]
[1738180598853,0.144969,103480.0,103460.0,0.36806778]
[1738180599067,0.09724316,103470.0,103460.0,0.22323418]
[1738180599275,0.09724316,103470.0,103460.0,0.0001434]
[1738180599276,0.24221216,103470.0,103460.0,0.0001434]
[1738180599484,0.45025888,103470.0,103460.0,0.0001434]
[1738180599742,0.49102254,103470.0,103460.0,0.0001434]
[1738180600156,0.13800682,103470.0,103460.0,0.1451264]